bitfinex/quotes_BTCUSD_20240810
["timestamp","ask_amount","ask_price","bid_price","bid_amount"]
[1723284549001,0.000831,61049.0,61048.0,2.16442598]
[1723284549221,0.000831,61049.0,61048.0,2.18442598]
[1723284549418,0.000831,61049.0,61048.0,2.26692598]
[1723284549699,0.000831,61049.0,61048.0,2.24792598]
[1723284550127,0.000831,61049.0,61048.0,2.26992598]
[1723284550273,0.000831,61049.0,61048.0,2.26892598]
[1723284550443,0.000831,61049.0,61048.0,2.04552598]
[1723284550863,0.000831,61049.0,61048.0,2.06552598]
[1723284551101,0.000831,61049.0,61048.0,2.04552598]
[1723284551306,0.000831,61049.0,61048.0,2.06952598]
[1723284551508,0.000831,61049.0,61048.0,2.07551288]
[1723284551713,0.000831,61049.0,61048.0,1.82120788]
[1723284551913,0.000831,61049.0,61048.0,1.73870788]
[1723284552428,0.000831,61049.0,61048.0,1.91251543]
[1723284553813,0.000831,61049.0,61048.0,1.93342953]
[1723284553992,0.000831,61049.0,61048.0,1.91342953]
[1723284554192,0.000831,61049.0,61048.0,2.01592953]
[1723284554621,0.000831,61049.0,61048.0,2.01592747]
[1723284555412,0.000831,61049.0,61048.0,2.24223247]
[1723284555617,0.000831,61049.0,61048.0,2.32023247]
[1723284555812,0.000831,61049.0,61048.0,2.34323247]
[1723284556033,0.000831,61049.0,61048.0,2.40033467]
[1723284556320,0.000831,61049.0,61048.0,2.39433467]
[1723284556559,0.000831,61049.0,61048.0,2.39033467]
[1723284557377,0.000831,61049.0,61048.0,2.58926172]
[1723284557577,0.000831,61049.0,61048.0,2.62526172]
[1723284557757,0.000831,61049.0,61048.0,2.78125169]
[1723284558111,0.000831,61049.0,61048.0,2.24722111]
[1723284558262,0.000831,61049.0,61048.0,2.45120489]
[1723284558435,0.000831,61049.0,61048.0,2.7811255]
[1723284558641,0.000831,61049.0,61048.0,2.8091255]
[1723284559253,0.000831,61049.0,61048.0,2.7951255]
[1723284559455,0.000831,61049.0,61048.0,2.8091255]
[1723284559677,0.000831,61049.0,61048.0,2.48520578]
[1723284560005,0.000831,61049.0,61048.0,2.8092496]
[1723284560197,0.000831,61049.0,61048.0,2.7952496]
[1723284560651,0.000831,61049.0,61048.0,3.4492496]
[1723284560978,0.000831,61049.0,61048.0,2.7812496]
[1723284561185,0.000831,61049.0,61048.0,2.8092496]
[1723284562010,0.000831,61049.0,61048.0,2.63953021]
[1723284562218,0.000831,61049.0,61048.0,2.80951516]
[1723284562424,0.000831,61049.0,61048.0,2.57153623]
[1723284562726,0.000831,61049.0,61048.0,2.80951509]
[1723284562931,0.000831,61049.0,61048.0,2.80951457]
[1723284563499,0.000831,61049.0,61048.0,2.8582136]
[1723284563711,0.000831,61049.0,61048.0,2.66988688]
[1723284563915,0.000831,61049.0,61048.0,2.8362136]
[1723284564428,0.00832,61052.0,61051.0,0.237398]
[1723284564629,0.00017974,61052.0,61051.0,1.0810602]
[1723284564836,0.00017974,61052.0,61051.0,1.25980415]
[1723284565040,0.00017974,61052.0,61051.0,1.42360115]
[1723284565188,0.00017974,61052.0,61051.0,1.64228887]
[1723284565398,0.00017974,61052.0,61051.0,2.33737532]
[1723284565607,0.00017974,61052.0,61051.0,2.53965527]
[1723284565814,0.00017974,61052.0,61051.0,1.95965527]
[1723284566224,0.56529874,61079.0,61062.0,0.848551]
[1723284566484,0.56529874,61079.0,61062.0,1.43864682]
[1723284566602,0.56529874,61079.0,61062.0,1.55353514]
[1723284566803,0.56529874,61079.0,61062.0,1.62151656]
[1723284567229,1e-08,61063.0,61062.0,1.58132124]
[1723284567449,1e-08,61063.0,61062.0,1.78526011]
[1723284567656,1e-08,61063.0,61062.0,1.58132124]
[1723284568014,1e-08,61063.0,61062.0,1.43155424]
[1723284568232,1e-08,61063.0,61062.0,1.44555424]
[1723284568432,1e-08,61063.0,61062.0,1.43155424]
[1723284568829,1e-08,61063.0,61062.0,1.49953327]
[1723284569313,1e-08,61063.0,61062.0,1.41755424]
[1723284569905,1e-08,61063.0,61062.0,1.3107533]
[1723284570313,1e-08,61063.0,61062.0,1.2967533]
[1723284570538,1e-08,61063.0,61062.0,1.3107533]
[1723284570734,1e-08,61063.0,61062.0,1.3127533]
[1723284570954,1e-08,61063.0,61062.0,1.2987533]
[1723284571162,1e-08,61063.0,61062.0,1.2907533]
[1723284571954,1e-08,61063.0,61062.0,1.15479525]
[1723284572159,1e-08,61063.0,61062.0,1.10081623]
[1723284572719,1e-08,61063.0,61062.0,1.23678626]
[1723284572923,1e-08,61063.0,61062.0,1.22278626]
[1723284573222,1e-08,61063.0,61062.0,1.23678626]
[1723284573623,1e-08,61063.0,61062.0,2.23678626]
[1723284575842,1e-08,61063.0,61062.0,2.22678626]
[1723284576046,1e-08,61063.0,61062.0,2.23678626]
[1723284576638,1e-08,61063.0,61062.0,2.31638626]
[1723284576842,1e-08,61063.0,61062.0,2.33938626]
[1723284577042,1e-08,61063.0,61062.0,2.33938278]
[1723284577451,1e-08,61063.0,61062.0,2.23678278]
[1723284577616,1e-08,61063.0,61062.0,2.23678537]
[1723284578396,1e-08,61063.0,61062.0,2.22678537]
[1723284578601,0.06590001,61063.0,61062.0,2.22678537]
[1723284578813,0.06590001,61063.0,61062.0,1.86161837]
[1723284578986,0.06590001,61063.0,61062.0,1.68832238]
[1723284579392,0.06590001,61063.0,61062.0,1.85208938]
[1723284579810,0.06590001,61063.0,61062.0,1.83808938]
[1723284580429,0.06590001,61063.0,61062.0,1.85208938]
[1723284581288,0.14730001,61063.0,61062.0,1.17885746]
[1723284581432,0.22918201,61063.0,61062.0,1.04288832]
[1723284582051,0.55671201,61063.0,61062.0,1.04288832]
[1723284582274,0.72047701,61063.0,61062.0,1.04288832]
[1723284583106,0.72047701,61063.0,61062.0,1.02888832]
[1723284583304,0.72047701,61063.0,61062.0,1.01488832]
[1723284583704,0.72247701,61063.0,61062.0,1.01488832]
[1723284583944,0.72247701,61063.0,61062.0,1.01588832]
[1723284584175,0.39294701,61063.0,61062.0,1.01588832]
[1723284584576,0.39494701,61063.0,61062.0,1.01688832]
[1723284584773,0.39494701,61063.0,61062.0,1.01588832]
[1723284585129,0.55871201,61063.0,61062.0,1.01688832]
[1723284585850,0.55671201,61063.0,61062.0,1.01588832]
[1723284586234,0.39494701,61063.0,61062.0,1.01688832]
[1723284586435,0.39494701,61063.0,61062.0,1.01588832]
[1723284586917,0.39494701,61063.0,61062.0,1.01688832]
[1723284587101,0.55671201,61063.0,61062.0,1.01488832]
[1723284587452,0.55671201,61063.0,61062.0,1.01588832]
[1723284587453,0.55871201,61063.0,61062.0,1.01588832]
[1723284588198,0.39494701,61063.0,61062.0,1.01588832]
[1723284589275,0.14930001,61063.0,61062.0,1.01588832]
[1723284589680,0.14930001,61063.0,61062.0,1.01488832]
[1723284590080,0.14730001,61063.0,61062.0,1.01588832]
[1723284590241,0.14930001,61063.0,61062.0,1.01580242]
[1723284590767,0.14930001,61063.0,61062.0,1.09768542]
[1723284590768,0.14730001,61063.0,61062.0,1.09768542]
[1723284591166,0.14730001,61063.0,61062.0,1.01580242]
[1723284592233,0.14930001,61063.0,61062.0,1.01580242]
[1723284592935,0.14730001,61063.0,61062.0,1.01580242]
[1723284593153,0.14830001,61063.0,61062.0,1.01580242]
[1723284596032,0.14730001,61063.0,61062.0,1.01580242]
[1723284596443,0.14830001,61063.0,61062.0,1.01580242]
[1723284596967,0.14730001,61063.0,61062.0,1.01580242]
[1723284597177,0.14830001,61063.0,61062.0,1.01580242]
[1723284597808,0.06690001,61063.0,61062.0,1.09768542]
[1723284597947,0.00100001,61063.0,61062.0,1.09768542]
[1723284598402,0.00100001,61063.0,61062.0,1.01580242]
[1723284599066,0.00100001,61063.0,61062.0,1.09768542]
[1723284599268,0.00100001,61063.0,61062.0,1.01580242]
[1723284601092,0.00100001,61063.0,61062.0,1.26150034]
[1723284602252,0.00100001,61063.0,61062.0,1.42526734]
[1723284602489,0.00100001,61063.0,61062.0,1.56126049]
[1723284603865,0.00100001,61063.0,61062.0,1.42526734]
[1723284604065,0.00100001,61063.0,61062.0,1.56126068]
[1723284604266,0.05341101,61065.0,61064.0,0.081881]
[1723284604667,0.05341101,61065.0,61064.0,0.09682211]
[1723284605434,0.13529001,61065.0,61064.0,0.01494111]
[1723284605669,0.13529001,61065.0,61064.0,0.01594111]
[1723284605845,0.13529001,61065.0,61064.0,0.001]
[1723284606047,0.13529001,61065.0,61064.0,0.01494107]
[1723284606227,0.13529001,61065.0,61062.0,1.0009141]
[1723284606427,0.13729001,61065.0,61064.0,0.01494107]
[1723284606681,0.13729001,61065.0,61063.0,0.01342843]
[1723284606884,0.13729001,61065.0,61064.0,0.01506645]
[1723284607253,0.21239001,61065.0,61062.0,1.0009141]
[1723284607453,0.37614901,61065.0,61064.0,0.01506645]
[1723284607657,0.37614901,61065.0,61063.0,0.01507112]
[1723284607658,0.21239001,61065.0,61063.0,0.01507112]
[1723284607863,0.21039001,61065.0,61064.0,0.01506645]
[1723284608628,0.081881,61064.0,61062.0,1.0009141]
[1723284608841,0.163753,61068.0,61062.0,1.0009141]
[1723284608842,0.387047,61063.0,61062.0,1.0009141]
[1723284609955,0.223282,61063.0,61062.0,1.0009141]
[1723284610296,0.148182,61063.0,61062.0,1.0009141]
[1723284610494,0.0663,61066.0,61062.0,1.0009141]
[1723284610697,0.08188,61065.0,61062.0,1.0009141]
[1723284611133,0.081879,61066.0,61062.0,1.0009141]
[1723284611420,0.163753,61068.0,61063.0,0.1360016]
[1723284611421,0.163755,61067.0,61063.0,0.1360016]
[1723284611573,0.08188,61065.0,61062.0,1.0009141]
[1723284612326,0.08288,61065.0,61062.0,1.0009141]
[1723284612744,0.387047,61063.0,61062.0,1.0009141]
[1723284613082,0.550812,61063.0,61062.0,1.0009141]
[1723284613280,0.550812,61063.0,61062.0,1.0019141]
[1723284613695,0.550812,61063.0,61062.0,1.0009141]
[1723284614375,0.550812,61063.0,61062.0,1.01599175]
[1723284614957,0.551812,61063.0,61062.0,1.01599175]
[1723284616601,0.388047,61063.0,61062.0,1.01599175]
[1723284617059,0.551812,61063.0,61062.0,1.01599175]
[1723284617426,0.551812,61063.0,61062.0,1.0009141]
[1723284617767,0.551812,61063.0,61062.0,1.01599175]
[1723284619301,0.0663,61063.0,61062.0,1.01599175]
[1723284619503,0.001,61063.0,61062.0,1.15199818]
[1723284619677,0.001,61063.0,61062.0,1.29438118]
[1723284619885,0.001,61063.0,61062.0,1.45814818]
[1723284620035,0.000831,61065.0,61064.0,0.0772]
[1723284620244,0.000831,61065.0,61064.0,0.21320643]
[1723284620447,0.000831,61065.0,61064.0,0.22827318]
[1723284621056,0.000831,61065.0,61064.0,0.31015418]
[1723284621857,0.000831,61065.0,61064.0,0.31015418]
[1723284622298,0.000831,61065.0,61064.0,0.47391618]
[1723284622478,0.000831,61065.0,61064.0,0.63767818]
[1723284623239,0.000831,61065.0,61064.0,0.63967818]
[1723284624276,0.000831,61065.0,61064.0,0.64667818]
[1723284624610,0.000831,61065.0,61064.0,0.64467818]
[1723284625018,0.000831,61065.0,61064.0,0.65367818]
[1723284625218,0.000831,61065.0,61064.0,0.65366249]
[1723284625426,0.000831,61065.0,61064.0,0.65464215]
[1723284625798,0.000831,61065.0,61064.0,0.66464215]
[1723284626169,0.000831,61065.0,61064.0,0.64764215]
[1723284626366,0.000831,61065.0,61064.0,0.65664215]
[1723284626592,0.000831,61065.0,61064.0,0.66364215]
[1723284627404,0.000831,61065.0,61064.0,0.65664215]
[1723284627592,0.000831,61065.0,61064.0,0.66264215]
[1723284627809,0.000831,61065.0,61064.0,0.65364215]
[1723284628007,0.000831,61065.0,61064.0,0.65764215]
[1723284628230,0.000831,61065.0,61064.0,0.82745707]
[1723284628679,0.000831,61065.0,61064.0,0.81745708]
[1723284628906,0.000831,61065.0,61064.0,0.82645708]
[1723284629109,0.000831,61065.0,61064.0,1.69046633]
[1723284629241,0.000831,61065.0,61064.0,1.81745707]
[1723284629624,0.000831,61065.0,61064.0,1.82145707]
[1723284630046,0.000831,61065.0,61064.0,1.82845707]
[1723284630280,0.000831,61065.0,61064.0,1.82145707]
[1723284630455,0.000831,61065.0,61064.0,1.40670049]
[1723284630662,0.000831,61065.0,61064.0,1.41270049]
[1723284630824,0.000831,61065.0,61064.0,1.23293849]
[1723284631235,0.000831,61065.0,61064.0,1.23993849]
[1723284631658,0.000831,61065.0,61064.0,1.24458798]
[1723284632221,0.141331,61065.0,61064.0,1.15370718]
[1723284632433,0.141331,61065.0,61064.0,1.01771624]
[1723284632434,0.386969,61065.0,61064.0,1.01771624]
[1723284632579,0.714487,61065.0,61064.0,1.02771624]
[1723284632785,0.92736812,61065.0,61064.0,1.02771624]
[1723284633187,0.9273869,61065.0,61064.0,1.02071624]
[1723284633432,0.7636279,61065.0,61064.0,1.02071624]
[1723284633765,0.55078392,61065.0,61064.0,1.02771624]
[1723284633965,0.55078392,61065.0,61064.0,1.01071624]
[1723284634166,0.386969,61065.0,61064.0,1.01071624]
[1723284634303,0.386969,61065.0,61064.0,1.02071624]
[1723284634511,0.386969,61065.0,61064.0,1.01971624]
[1723284634733,0.386969,61065.0,61064.0,1.01071624]
[1723284634943,0.386969,61065.0,61064.0,1.01171624]
[1723284635181,0.387969,61065.0,61064.0,1.01071624]
[1723284636653,0.387969,61065.0,61064.0,1.01171624]
[1723284637253,0.22421,61065.0,61064.0,1.01171624]
[1723284639945,0.22321,61065.0,61064.0,1.01071624]
[1723284640290,0.063231,61065.0,61064.0,1.01171624]
[1723284640493,0.001831,61065.0,61064.0,1.01171624]
[1723284640857,0.000831,61065.0,61064.0,1.09359724]
[1723284641046,0.001831,61065.0,61064.0,1.09359724]
[1723284641224,0.001831,61065.0,61064.0,1.01171624]
[1723284641462,0.001831,61065.0,61064.0,1.22859244]
[1723284641683,0.000831,61065.0,61064.0,1.22859244]
[1723284641886,0.001831,61065.0,61064.0,1.22859244]
[1723284642406,0.001831,61065.0,61064.0,1.55611644]
[1723284642595,0.001831,61065.0,61064.0,1.62001644]
[1723284642791,0.001831,61065.0,61064.0,1.48402124]
[1723284643041,0.001831,61065.0,61064.0,1.62101372]
[1723284643162,0.000831,61065.0,61064.0,1.62001372]
[1723284643558,0.000831,61065.0,61064.0,1.62301372]
[1723284643978,0.000831,61065.0,61064.0,1.62401372]
[1723284644385,0.000831,61065.0,61064.0,1.63101372]
[1723284647248,0.000831,61065.0,61064.0,1.62401372]
[1723284647458,0.000831,61065.0,61064.0,1.62001372]
[1723284647672,0.000831,61065.0,61064.0,1.63301372]
[1723284648071,0.000831,61065.0,61064.0,1.70871372]
[1723284649282,0.000831,61065.0,61064.0,1.64481372]
[1723284649896,0.000831,61065.0,61064.0,1.64481472]
[1723284650338,0.000831,61065.0,61064.0,1.64481444]
[1723284650949,0.000831,61065.0,61064.0,1.64481442]
[1723284652766,0.000831,61065.0,61064.0,1.56911442]
[1723284653574,0.000831,61065.0,61064.0,1.5691172]
[1723284655606,0.000831,61065.0,61064.0,1.6448172]
[1723284655801,0.000831,61065.0,61064.0,1.8085792]
[1723284656655,0.000831,61065.0,61064.0,1.97239412]
[1723284656807,0.000831,61065.0,61064.0,2.03649412]
[1723284657779,0.000831,61065.0,61064.0,2.12849412]
[1723284657973,0.000831,61065.0,61064.0,2.13749412]
[1723284658541,0.000831,61065.0,61064.0,2.13249412]
[1723284659149,0.000831,61065.0,61064.0,2.12349412]
[1723284659629,0.000831,61065.0,61064.0,2.13649412]
[1723284659982,0.000831,61065.0,61064.0,2.14449412]
[1723284660180,0.000831,61065.0,61064.0,2.14649412]
[1723284660400,0.000831,61065.0,61064.0,2.13649412]
[1723284660582,0.000831,61065.0,61064.0,2.14749412]
[1723284660789,0.000831,61065.0,61064.0,2.15749412]
[1723284660942,0.000831,61065.0,61064.0,2.01149816]
[1723284661148,0.000831,61065.0,61064.0,2.14747972]
[1723284662276,0.000831,61065.0,61064.0,2.01149816]
[1723284662470,0.000831,61065.0,61064.0,2.14747665]
[1723284663231,0.000831,61065.0,61064.0,2.1474769]
[1723284663670,0.000831,61065.0,61064.0,2.0833769]
[1723284664324,0.000831,61065.0,61064.0,2.0593769]
[1723284664527,0.000831,61065.0,61064.0,2.0703769]
[1723284664733,0.000831,61065.0,61064.0,2.0833769]
[1723284665061,0.000831,61065.0,61064.0,2.0723769]
[1723284665872,0.000831,61065.0,61064.0,2.0593769]
[1723284666275,0.000831,61065.0,61064.0,2.0833769]
[1723284666889,0.000831,61065.0,61064.0,2.0703769]
[1723284667044,0.000831,61065.0,61064.0,2.0593769]
[1723284667246,0.000831,61065.0,61064.0,1.9076149]
[1723284667450,0.000831,61065.0,61064.0,1.15869498]
[1723284667648,0.000831,61065.0,61064.0,1.01971624]
[1723284667649,0.142031,61065.0,61064.0,1.01971624]
[1723284667892,0.22391,61065.0,61064.0,1.01971624]
[1723284668238,0.22391,61065.0,61064.0,1.01071624]
[1723284668436,0.142031,61065.0,61064.0,1.01071624]
[1723284668954,0.142031,61065.0,61064.0,1.14671799]
[1723284669155,0.142031,61065.0,61064.0,1.15971799]
[1723284669562,0.142031,61065.0,61064.0,1.15771799]
[1723284669775,0.000831,61065.0,61064.0,1.23959899]
[1723284669963,0.000831,61065.0,61064.0,1.22959723]
[1723284670366,0.000831,61065.0,61064.0,1.22859472]
[1723284670772,0.000831,61065.0,61064.0,1.22959472]
[1723284671705,0.000831,61065.0,61064.0,1.39335672]
[1723284672051,0.000831,61065.0,61064.0,1.39235672]
[1723284672446,0.000831,61065.0,61064.0,1.39335672]
[1723284672942,0.000831,61065.0,61064.0,1.39235672]
[1723284673302,0.000831,61065.0,61064.0,1.39435672]
[1723284673505,0.000831,61065.0,61064.0,1.39435189]
[1723284673736,0.000831,61065.0,61064.0,1.39235189]
[1723284674060,0.000831,61065.0,61064.0,1.39635189]
[1723284674206,0.000831,61065.0,61064.0,1.39735189]
[1723284675004,0.000831,61065.0,61064.0,1.15170889]
[1723284675376,0.000831,61065.0,61064.0,1.23358989]
[1723284675579,0.08271,61065.0,61064.0,1.15170889]
[1723284675727,0.082031,61065.0,61064.0,1.01571624]
[1723284675895,0.22391,61065.0,61064.0,1.01571624]
[1723284676777,0.76425908,61065.0,61064.0,1.01171624]
[1723284676906,0.76425908,61065.0,61064.0,1.01371624]
[1723284676907,0.551428,61065.0,61064.0,1.01371624]
[1723284677111,0.715187,61065.0,61064.0,1.01371624]
[1723284677512,0.78879788,61065.0,61064.0,1.01371624]
[1723284677756,0.715187,61065.0,61064.0,1.01371624]
[1723284678583,0.78879646,61065.0,61064.0,1.01071624]
[1723284678861,0.62503746,61065.0,61064.0,1.01071624]
[1723284679180,0.551428,61065.0,61064.0,1.01071624]
[1723284679395,0.60049456,61065.0,61064.0,1.01271624]
[1723284679588,0.551428,61065.0,61064.0,1.01271624]
[1723284679785,0.551428,61065.0,61064.0,1.01071624]
[1723284680133,0.551428,61065.0,61064.0,1.01171624]
[1723284682957,0.60049456,61065.0,61064.0,1.01171624]
[1723284683171,0.62503746,61065.0,61064.0,1.01171624]
[1723284683577,0.95261138,61065.0,61064.0,1.01171624]
[1723284683861,0.78885238,61065.0,61064.0,1.01171624]
[1723284684267,0.71524292,61065.0,61064.0,1.01171624]
[1723284684607,0.78882611,61065.0,61064.0,1.01171624]
[1723284685750,0.76428923,61065.0,61064.0,1.01171624]
[1723284686532,0.76428705,61065.0,61064.0,1.01171624]
[1723284686927,0.71524292,61065.0,61064.0,1.01171624]
[1723284687397,0.78880912,61065.0,61064.0,1.01171624]
[1723284687885,0.71524292,61065.0,61064.0,1.01171624]
[1723284689393,0.63404292,61065.0,61064.0,1.01171624]
[1723284690003,0.470228,61065.0,61064.0,1.01171624]
[1723284691780,0.548828,61065.0,61064.0,1.01171624]
[1723284705220,0.470228,61065.0,61064.0,1.01171624]
[1723284706253,0.410228,61065.0,61064.0,1.01171624]
[1723284706461,0.246469,61065.0,61064.0,1.01171624]
[1723284706760,0.08271,61065.0,61064.0,1.01171624]
[1723284706958,0.08271,61065.0,61064.0,1.08931624]
[1723284707165,0.08271,61065.0,61064.0,1.22532374]
[1723284707326,0.08271,61065.0,61064.0,1.22532014]
[1723284707531,0.08271,61065.0,61064.0,1.2253153]
[1723284709212,0.08271,61065.0,61064.0,1.1477153]
[1723284709418,0.311969,61065.0,61064.0,1.01171624]
[1723284710103,0.246469,61065.0,61064.0,1.01171624]
[1723284710471,0.08271,61065.0,61064.0,1.02071624]
[1723284710708,0.08271,61065.0,61064.0,1.15251624]
[1723284710912,0.08271,61065.0,61064.0,1.15151624]
[1723284711113,0.08271,61065.0,61064.0,1.29251736]
[1723284711320,0.08271,61065.0,61064.0,1.15151624]
[1723284711663,0.08271,61065.0,61064.0,1.15951624]
[1723284711860,0.246469,61065.0,61064.0,1.09231624]
[1723284712273,0.246469,61065.0,61064.0,1.08831624]
[1723284712479,0.246469,61065.0,61064.0,1.01071624]
[1723284713214,0.246469,61065.0,61064.0,1.01271624]
[1723284713820,0.246469,61065.0,61064.0,1.01671624]
[1723284714463,0.246469,61065.0,61064.0,1.01471624]
[1723284714675,0.246469,61065.0,61064.0,1.02071624]
[1723284714918,0.63954292,61065.0,61064.0,1.02071624]
[1723284715740,0.475728,61065.0,61064.0,1.02071624]
[1723284717240,0.475728,61065.0,61064.0,1.01671624]
[1723284717661,0.475728,61065.0,61064.0,1.01071624]
[1723284717874,0.475728,61065.0,61064.0,1.01171624]
[1723284722476,0.52474616,61065.0,61064.0,1.01171624]
[1723284722726,0.475728,61065.0,61064.0,1.01171624]
[1723284724134,0.52483855,61065.0,61064.0,1.01171624]
[1723284725612,0.475728,61065.0,61064.0,1.01171624]
[1723284726083,0.558028,61065.0,61064.0,1.01171624]
[1723284726573,0.638628,61065.0,61064.0,1.01171624]
[1723284728596,0.475728,61065.0,61064.0,1.01171624]
[1723284728799,0.410228,61065.0,61064.0,1.01171624]
[1723284732984,0.08271,61065.0,61064.0,1.01171624]
[1723284733240,0.000831,61065.0,61064.0,1.15501624]
[1723284733379,0.000831,61065.0,61064.0,1.37290047]
[1723284734031,0.000831,61065.0,61064.0,1.78102447]
[1723284735189,0.000831,61065.0,61064.0,1.78002447]
[1723284735396,0.000831,61065.0,61064.0,1.78302447]
[1723284735852,0.000831,61065.0,61064.0,1.64702124]
[1723284736085,0.000831,61065.0,61064.0,1.78300373]
[1723284737234,0.000831,61065.0,61064.0,1.78000373]
[1723284737619,0.000831,61065.0,61064.0,1.78500373]
[1723284737808,0.000831,61065.0,61064.0,1.78800373]
[1723284737962,0.000831,61065.0,61064.0,1.78000373]
[1723284738362,0.000831,61065.0,61064.0,1.79300373]
[1723284739310,0.000831,61065.0,61064.0,1.71240373]
[1723284739465,0.000831,61065.0,61064.0,1.79300373]
[1723284739665,0.000831,61065.0,61064.0,1.78800373]
[1723284740482,0.000831,61065.0,61064.0,1.78000373]
[1723284740902,0.000831,61065.0,61064.0,1.78800373]
[1723284741111,0.000831,61065.0,61064.0,1.79300373]
[1723284741320,0.000831,61065.0,61064.0,1.78000373]
[1723284741691,0.000831,61065.0,61064.0,1.80700373]
[1723284741892,0.000831,61065.0,61064.0,1.79400373]
[1723284742344,0.000831,61065.0,61064.0,1.80100373]
[1723284742543,0.000831,61065.0,61064.0,1.79400373]
[1723284742995,0.000831,61065.0,61064.0,1.67102124]
[1723284743205,0.000831,61065.0,61064.0,1.80700589]
[1723284746730,0.000831,61065.0,61064.0,1.807004]
[1723284750098,0.000831,61065.0,61064.0,1.67102124]
[1723284750295,0.000831,61065.0,61064.0,1.80700464]
[1723284750659,0.000831,61065.0,61064.0,1.72640464]
[1723284752870,0.22899,61065.0,61064.0,1.17369964]
[1723284753119,0.470069,61065.0,61064.0,1.03771624]
[1723284753295,0.633828,61065.0,61064.0,1.03771624]
[1723284753512,0.79764292,61065.0,61064.0,1.03771624]
[1723284753708,0.79764292,61065.0,61064.0,1.02371624]
[1723284754071,0.79764292,61065.0,61064.0,1.03171624]
[1723284754390,0.79764292,61065.0,61064.0,1.01871624]
[1723284754566,0.79764292,61065.0,61064.0,1.01571624]
[1723284754784,0.79764292,61065.0,61064.0,1.01071624]
[1723284756190,0.79764292,61065.0,61064.0,1.01171624]
[1723284756341,0.84669063,61065.0,61064.0,1.01171624]
[1723284756843,1.01044963,61065.0,61064.0,1.01171624]
[1723284757043,0.92984963,61065.0,61064.0,1.01171624]
[1723284757248,1.01044963,61065.0,61064.0,1.01171624]
[1723284757492,0.76609063,61065.0,61064.0,1.01171624]
[1723284757728,0.79764292,61065.0,61064.0,1.01171624]
[1723284758422,0.96140192,61065.0,61064.0,1.01171624]
[1723284758583,0.79764292,61065.0,61064.0,1.01171624]
[1723284760228,0.96140192,61065.0,61064.0,1.01171624]
[1723284761753,0.96140192,61065.0,61064.0,1.01071624]
[1723284762212,0.96140192,61065.0,61064.0,1.01171624]
[1723284762414,1.21719351,61065.0,61064.0,1.01171624]
[1723284762547,1.46885134,61065.0,61064.0,1.01171624]
[1723284762938,1.82230157,61065.0,61064.0,1.01171624]
[1723284763173,1.65854257,61065.0,61064.0,1.01171624]
[1723284763403,1.82401184,61065.0,61064.0,1.01171624]
[1723284763618,2.33754257,61065.0,61064.0,1.01071624]
[1723284763825,2.50269227,61065.0,61064.0,1.01171624]
[1723284764086,2.50769227,61065.0,61064.0,1.01271624]
[1723284764386,2.15684437,61065.0,61064.0,1.01271624]
[1723284764525,1.99145127,61065.0,61064.0,1.01271624]
[1723284764730,1.99145127,61065.0,61064.0,1.01071624]
[1723284764731,1.94185862,61065.0,61064.0,1.01071624]
[1723284764968,1.98490151,61065.0,61064.0,1.01071624]
[1723284765167,1.98990151,61065.0,61064.0,1.01171624]
[1723284765747,2.11090151,61065.0,61064.0,1.01171624]
[1723284766128,2.11090151,61065.0,61064.0,0.22067927]
[1723284766129,2.96666051,61065.0,61064.0,0.22067927]
[1723284766330,2.96666051,61065.0,61064.0,0.17721003]
[1723284766535,2.96666051,61065.0,61064.0,0.14445703]
[1723284766736,2.96666051,61065.0,61064.0,0.01310803]
[1723284766933,4.38958051,61065.0,61064.0,3e-08]
[1723284767142,2.63087151,61065.0,61064.0,3e-08]
[1723284767390,2.46711251,61065.0,61064.0,3e-08]
[1723284767786,2.42406962,61065.0,61064.0,3e-08]
[1723284768130,0.414503,61049.0,61042.0,0.0009141]
[1723284768347,1.37617038,61049.0,61042.0,0.0009141]
[1723284768553,1.47617038,61049.0,61042.0,0.0009141]
[1723284768941,1.46617038,61049.0,61042.0,0.0009141]
[1723284769157,1.37432392,61049.0,61042.0,0.0009141]
[1723284769507,1.36432392,61049.0,61042.0,0.0009141]
[1723284770131,1.37432392,61049.0,61042.0,0.0009141]
[1723284770304,1.37632392,61049.0,61042.0,0.0009141]
[1723284770912,1.18872392,61049.0,61042.0,0.0009141]
[1723284772262,1.17557568,61049.0,61042.0,0.0009141]
[1723284774571,1.37717568,61049.0,61042.0,0.0009141]
[1723284777169,1.29987568,61049.0,61042.0,0.0009141]
[1723284779438,1.23837568,61049.0,61047.0,0.075]
[1723284779631,1.23837568,61049.0,61043.0,0.075]
[1723284781330,1.24837568,61049.0,61043.0,0.075]
[1723284782504,1.24837568,61049.0,61042.0,0.0009141]
[1723284782639,1.10827568,61049.0,61042.0,0.0009141]
[1723284783265,1.18557568,61049.0,61042.0,0.0009141]
[1723284785522,1.31913325,61049.0,61042.0,0.0009141]
[1723284785760,1.35213325,61049.0,61042.0,0.0009141]
[1723284785955,1.22857568,61049.0,61042.0,0.0009141]
[1723284787742,1.30917568,61049.0,61042.0,0.0009141]
[1723284789499,1.35239455,61049.0,61042.0,0.0009141]
[1723284792203,1.34239455,61049.0,61042.0,0.0009141]
[1723284792404,1.35239455,61049.0,61042.0,0.0009141]
[1723284792828,1.34239455,61049.0,61042.0,0.0009141]
[1723284793029,1.35239455,61049.0,61042.0,0.0009141]
[1723284793549,1.35239455,61049.0,61042.0,0.0798141]
[1723284795097,1.35241141,61049.0,61042.0,0.0798141]
[1723284795273,1.49811441,61049.0,61042.0,0.0009141]
[1723284795436,1.48804628,61049.0,61042.0,0.0009141]
[1723284795921,1.49804628,61049.0,61042.0,0.0009141]
[1723284796783,1.49840999,61049.0,61042.0,0.0009141]
[1723284797123,1.54719506,61049.0,61042.0,0.0009141]
[1723284797315,1.49840999,61049.0,61042.0,0.0009141]
[1723284797512,2.2315876,61049.0,61042.0,0.0009141]
[1723284797780,2.3957373,61049.0,61042.0,0.0009141]
[1723284798056,2.31255969,61049.0,61042.0,0.0009141]
[1723284798272,2.32255969,61049.0,61042.0,0.0009141]
[1723284798481,2.39682772,61049.0,61042.0,0.0009141]
[1723284798636,2.420988,61049.0,61042.0,0.0009141]
[1723284799467,2.32341785,61049.0,61042.0,0.0009141]
[1723284800505,2.44538054,61049.0,61042.0,0.0009141]
[1723284801494,2.28341785,61049.0,61042.0,0.0009141]
[1723284802065,2.30918006,61049.0,61042.0,0.0009141]
[1723284803125,2.29918006,61049.0,61042.0,0.0009141]
[1723284803317,2.22858006,61049.0,61042.0,0.0009141]
[1723284803552,1.98122836,61049.0,61042.0,0.0009141]
[1723284803758,1.76182836,61049.0,61047.0,0.0789]